[Event "*** SCC Grand Prix: Titled Tuesday Blitz"]
[Site "Chess.com"]
[Date "2020.07.21"]
[Round "8"]
[White "vanea_03"]
[Black "stanyga"]
[Result "0-1"]
[WhiteElo "2703"]
[BlackElo "2615"]
[TimeControl "180+1"]
[EndTime "11:35:27 PDT"]
[Termination "stanyga won by resignation"]

1. d4 {[%clk 0:03:00.9]} 1... Nf6 {[%clk 0:02:59.5]} 2. c4 {[%clk 0:03:01.3]}
2... g6 {[%clk 0:02:59.8]} 3. g3 {[%clk 0:03:01.2]} 3... Bg7 {[%clk 0:02:59]} 4.
Bg2 {[%clk 0:03:01.4]} 4... d5 {[%clk 0:02:59.7]} 5. cxd5 {[%clk 0:03:00.1]}
5... Nxd5 {[%clk 0:02:58.8]} 6. Nf3 {[%clk 0:02:59.9]} 6... Nb6 {[%clk
0:02:58.8]} 7. O-O {[%clk 0:02:50.6]} 7... Nc6 {[%clk 0:02:59.1]} 8. e3 {[%clk
0:02:50.3]} 8... O-O {[%clk 0:02:59.3]} 9. Nc3 {[%clk 0:02:49.7]} 9... Re8
{[%clk 0:02:58.8]} 10. h3 {[%clk 0:02:39.7]} 10... a5 {[%clk 0:02:57.1]} 11. b3
{[%clk 0:02:33.7]} 11... e5 {[%clk 0:02:55.9]} 12. dxe5 {[%clk 0:01:53.1]} 12...
Nxe5 {[%clk 0:02:54.2]} 13. Nxe5 {[%clk 0:01:50.3]} 13... Bxe5 {[%clk
0:02:53.6]} 14. Bb2 {[%clk 0:01:50.6]} 14... a4 {[%clk 0:02:45.3]} 15. Nxa4
{[%clk 0:01:45.7]} 15... Qxd1 {[%clk 0:02:24.7]} 16. Rfxd1 {[%clk 0:01:44.9]}
16... Nxa4 {[%clk 0:02:24.5]} 17. Bxe5 {[%clk 0:01:44.9]} 17... Rxe5 {[%clk
0:02:24.6]} 18. Rd8+ {[%clk 0:01:44.1]} 18... Kg7 {[%clk 0:02:24.3]} 19. bxa4
{[%clk 0:01:44.6]} 19... Rea5 {[%clk 0:02:24.2]} 20. Rb1 {[%clk 0:01:10.2]}
20... c6 {[%clk 0:02:23.2]} 21. Rb4 {[%clk 0:01:06.1]} 21... h5 {[%clk
0:01:36.2]} 22. h4 {[%clk 0:01:05.2]} 22... Kf6 {[%clk 0:01:33.2]} 23. Bf3
{[%clk 0:00:57.9]} 23... Ke7 {[%clk 0:01:32.6]} 24. Rh8 {[%clk 0:00:57.9]} 24...
Kd6 {[%clk 0:01:30.8]} 25. Bd1 {[%clk 0:00:55.5]} 25... Kc7 {[%clk 0:01:22.6]}
26. Bb3 {[%clk 0:00:55]} 26... Be6 {[%clk 0:01:22.7]} 27. Bxe6 {[%clk
0:00:53.7]} 27... Rxh8 {[%clk 0:01:21.7]} 28. Bxf7 {[%clk 0:00:52.1]} 28... Rha8
{[%clk 0:01:15.9]} 29. Bb3 {[%clk 0:00:50.1]} 29... Rd8 {[%clk 0:01:08.1]} 30.
Kg2 {[%clk 0:00:45.9]} 30... Rd2 {[%clk 0:01:04.5]} 31. Rf4 {[%clk 0:00:22]}
31... Rf5 {[%clk 0:01:01.3]} 32. Rxf5 {[%clk 0:00:22.4]} 32... gxf5 {[%clk
0:01:01.2]} 33. Bf7 {[%clk 0:00:23]} 33... c5 {[%clk 0:00:58.3]} 34. Kf3 {[%clk
0:00:22.8]} 34... Kd6 {[%clk 0:00:58]} 35. a5 {[%clk 0:00:20]} 35... Ke5 {[%clk
0:00:57.4]} 36. Bc4 {[%clk 0:00:13.4]} 36... Rc2 {[%clk 0:00:56.2]} 37. Bb3
{[%clk 0:00:13.9]} 37... Rc1 {[%clk 0:00:54.7]} 38. Bf7 {[%clk 0:00:13.3]} 38...
c4 {[%clk 0:00:54.7]} 39. Ke2 {[%clk 0:00:13.9]} 39... Rc2+ {[%clk 0:00:52.6]}
40. Ke1 {[%clk 0:00:14.4]} 40... c3 {[%clk 0:00:51.8]} 41. Bb3 {[%clk
0:00:12.9]} 41... Rb2 {[%clk 0:00:51.2]} 42. f3 {[%clk 0:00:11.7]} 42... Rg2
{[%clk 0:00:43.8]} 0-1

[Event "*** SCC Grand Prix: Titled Tuesday Blitz"]
[Site "Chess.com"]
[Date "2020.07.21"]
[Round "8"]
[White "Chessdemon2019"]
[Black "iaraldinho"]
[Result "1-0"]
[WhiteElo "2373"]
[BlackElo "2515"]
[TimeControl "180+1"]
[EndTime "11:35:27 PDT"]
[Termination "Chessdemon2019 won by checkmate"]

1. e4 {[%clk 0:03:00.9]} 1... c5 {[%clk 0:02:59.9]} 2. Nf3 {[%clk 0:03:00.6]}
2... a6 {[%clk 0:03:00]} 3. c3 {[%clk 0:03:00]} 3... d5 {[%clk 0:02:59.6]} 4.
exd5 {[%clk 0:02:59.1]} 4... Qxd5 {[%clk 0:03:00.5]} 5. d4 {[%clk 0:02:59.4]}
5... cxd4 {[%clk 0:03:01.3]} 6. cxd4 {[%clk 0:02:59.8]} 6... Nf6 {[%clk
0:03:01.3]} 7. Nc3 {[%clk 0:03:00.1]} 7... Qd6 {[%clk 0:03:01.2]} 8. Bd3 {[%clk
0:02:58.3]} 8... e6 {[%clk 0:02:58.2]} 9. O-O {[%clk 0:02:57.8]} 9... Be7 {[%clk
0:02:58.5]} 10. Bg5 {[%clk 0:02:56.6]} 10... O-O {[%clk 0:02:58.3]} 11. Re1
{[%clk 0:02:47]} 11... Nc6 {[%clk 0:02:57.4]} 12. Bc2 {[%clk 0:02:43.6]} 12...
Rd8 {[%clk 0:02:57.2]} 13. Qd3 {[%clk 0:02:31.1]} 13... g6 {[%clk 0:02:56.6]}
14. Rad1 {[%clk 0:02:28.5]} 14... Nb4 {[%clk 0:02:54.3]} 15. Qe2 {[%clk
0:02:25.2]} 15... Nxc2 {[%clk 0:02:49.1]} 16. Qxc2 {[%clk 0:02:26]} 16... b5
{[%clk 0:02:48.4]} 17. Ne4 {[%clk 0:02:06.4]} 17... Nxe4 {[%clk 0:02:41.9]} 18.
Qxe4 {[%clk 0:02:06.4]} 18... Ra7 {[%clk 0:02:36.3]} 19. Bxe7 {[%clk 0:01:52.4]}
19... Rxe7 {[%clk 0:02:35.5]} 20. Ne5 {[%clk 0:01:50.7]} 20... Bb7 {[%clk
0:02:34.8]} 21. Qf4 {[%clk 0:01:47]} 21... Qd5 {[%clk 0:02:24.5]} 22. f3 {[%clk
0:01:42.9]} 22... Qd6 {[%clk 0:02:11.6]} 23. Qf6 {[%clk 0:01:38.3]} 23... h5
{[%clk 0:01:53.2]} 24. h4 {[%clk 0:01:05.4]} 24... Rc7 {[%clk 0:01:36.1]} 25.
Kh1 {[%clk 0:00:52.5]} 25... Qe7 {[%clk 0:01:25.2]} 26. Qf4 {[%clk 0:00:47.6]}
26... Rdc8 {[%clk 0:01:20]} 27. d5 {[%clk 0:00:37.5]} 27... Bxd5 {[%clk
0:01:17.3]} 28. Nxg6 {[%clk 0:00:37.6]} 28... fxg6 {[%clk 0:01:12.4]} 29. Rxd5
{[%clk 0:00:37.3]} 29... Rc4 {[%clk 0:01:12.2]} 30. Rd4 {[%clk 0:00:27.7]} 30...
Qb4 {[%clk 0:00:53.5]} 31. Rxe6 {[%clk 0:00:18]} 31... R8c7 {[%clk 0:00:15.3]}
32. Rxg6+ {[%clk 0:00:09.9]} 32... Rg7 {[%clk 0:00:14.4]} 33. Rd8+ {[%clk
0:00:10.1]} 33... Kh7 {[%clk 0:00:12.3]} 34. Qh6# {[%clk 0:00:10.4]} 1-0

[Event "*** SCC Grand Prix: Titled Tuesday Blitz"]
[Site "Chess.com"]
[Date "2020.07.21"]
[Round "8"]
[White "Artyom_ChessMate"]
[Black "Shield12"]
[Result "0-1"]
[WhiteElo "2600"]
[BlackElo "2854"]
[TimeControl "180+1"]
[EndTime "11:35:31 PDT"]
[Termination "Shield12 won by resignation"]

1. e4 {[%clk 0:03:00.9]} 1... c5 {[%clk 0:02:59.7]} 2. Nc3 {[%clk 0:03:01.1]}
2... Nc6 {[%clk 0:02:59.4]} 3. Bb5 {[%clk 0:03:01.1]} 3... Nd4 {[%clk
0:02:58.9]} 4. Nf3 {[%clk 0:03:00.2]} 4... a6 {[%clk 0:02:59.4]} 5. Bd3 {[%clk
0:02:59.6]} 5... Nc6 {[%clk 0:02:59.6]} 6. O-O {[%clk 0:02:59.7]} 6... e6 {[%clk
0:03:00.1]} 7. b3 {[%clk 0:02:59.8]} 7... g5 {[%clk 0:02:57.6]} 8. h3 {[%clk
0:02:58.6]} 8... h5 {[%clk 0:02:54]} 9. Bb2 {[%clk 0:02:35.1]} 9... Bg7 {[%clk
0:02:53]} 10. e5 {[%clk 0:02:10.2]} 10... Nxe5 {[%clk 0:02:41.4]} 11. Nxe5
{[%clk 0:01:48.8]} 11... Bxe5 {[%clk 0:02:42.3]} 12. Re1 {[%clk 0:01:49.5]}
12... Bg7 {[%clk 0:02:41.7]} 13. Qf3 {[%clk 0:01:46.9]} 13... d6 {[%clk
0:02:19.4]} 14. Rab1 {[%clk 0:01:25.6]} 14... g4 {[%clk 0:02:03.7]} 15. hxg4
{[%clk 0:01:14.5]} 15... hxg4 {[%clk 0:02:04.6]} 16. Qxg4 {[%clk 0:01:13.4]}
16... Qh4 {[%clk 0:02:04.4]} 17. Qxh4 {[%clk 0:01:10.5]} 17... Rxh4 {[%clk
0:02:05.3]} 18. Ne4 {[%clk 0:00:53.2]} 18... Bxb2 {[%clk 0:02:03.5]} 19. Nxd6+
{[%clk 0:00:45]} 19... Ke7 {[%clk 0:01:59.4]} 20. Nxc8+ {[%clk 0:00:45]} 20...
Rxc8 {[%clk 0:02:00.3]} 21. Rxb2 {[%clk 0:00:45.6]} 21... Nf6 {[%clk 0:01:59.9]}
22. g3 {[%clk 0:00:40.4]} 22... Rd4 {[%clk 0:01:50]} 23. a4 {[%clk 0:00:26.2]}
23... Rcd8 {[%clk 0:01:49.7]} 24. Kg2 {[%clk 0:00:21.3]} 24... Nd5 {[%clk
0:01:48.2]} 25. Rbb1 {[%clk 0:00:11.6]} 25... Nb4 {[%clk 0:01:47.3]} 26. Re5
{[%clk 0:00:07.4]} 26... Kd6 {[%clk 0:01:41.4]} 27. Re3 {[%clk 0:00:07]} 27...
Ke7 {[%clk 0:01:33.2]} 28. Re5 {[%clk 0:00:06.8]} 28... R8d5 {[%clk 0:01:18.9]}
29. Rxd5 {[%clk 0:00:05.5]} 29... Rxd5 {[%clk 0:01:19.8]} 30. Rc1 {[%clk
0:00:03.7]} 30... b6 {[%clk 0:01:13.4]} 31. Bc4 {[%clk 0:00:01.8]} 31... Rxd2
{[%clk 0:01:11.9]} 32. c3 {[%clk 0:00:02.7]} 32... Na2 {[%clk 0:01:07.9]} 33.
Ra1 {[%clk 0:00:02.5]} 33... a5 {[%clk 0:01:00.4]} 34. b4 {[%clk 0:00:02.7]}
34... Nxc3 {[%clk 0:01:00.2]} 35. bxa5 {[%clk 0:00:03.3]} 35... bxa5 {[%clk
0:01:01.1]} 36. Rc1 {[%clk 0:00:03.6]} 36... Ne4 {[%clk 0:00:52.3]} 37. Kf3
{[%clk 0:00:02.6]} 37... f5 {[%clk 0:00:43.4]} 38. Rb1 {[%clk 0:00:02.5]} 38...
Rd4 {[%clk 0:00:38.9]} 39. Be2 {[%clk 0:00:02.2]} 39... Nd2+ {[%clk 0:00:38.8]}
40. Ke3 {[%clk 0:00:01.6]} 40... Nxb1 {[%clk 0:00:39.7]} 0-1

[Event "*** SCC Grand Prix: Titled Tuesday Blitz"]
[Site "Chess.com"]
[Date "2020.07.21"]
[Round "8"]
[White "Vladislav_Chizhikov"]
[Black "northridgehawk"]
[Result "1-0"]
[WhiteElo "2444"]
[BlackElo "2336"]
[TimeControl "180+1"]
[EndTime "11:35:31 PDT"]
[Termination "Vladislav_Chizhikov won by resignation"]

1. e4 {[%clk 0:03:00.9]} 1... e5 {[%clk 0:02:58.8]} 2. Nf3 {[%clk 0:03:00.2]}
2... Nc6 {[%clk 0:02:57.6]} 3. Bc4 {[%clk 0:02:59]} 3... Nf6 {[%clk 0:02:56.6]}
4. O-O {[%clk 0:02:57.4]} 4... Bc5 {[%clk 0:02:55.8]} 5. d4 {[%clk 0:02:57.4]}
5... Bxd4 {[%clk 0:02:48.9]} 6. Nxd4 {[%clk 0:02:56.9]} 6... Nxd4 {[%clk
0:02:45.2]} 7. Bg5 {[%clk 0:02:56.8]} 7... d6 {[%clk 0:02:43.9]} 8. f4 {[%clk
0:02:53]} 8... h6 {[%clk 0:02:40.2]} 9. fxe5 {[%clk 0:02:50.8]} 9... dxe5 {[%clk
0:02:36.5]} 10. Bxf6 {[%clk 0:02:49.8]} 10... gxf6 {[%clk 0:02:35.7]} 11. c3
{[%clk 0:02:47.4]} 11... Ne6 {[%clk 0:02:11.4]} 12. Qxd8+ {[%clk 0:02:46]} 12...
Kxd8 {[%clk 0:02:12.3]} 13. Rxf6 {[%clk 0:02:45.9]} 13... Ke7 {[%clk 0:02:10.8]}
14. Rf3 {[%clk 0:02:41.8]} 14... Bd7 {[%clk 0:02:10.1]} 15. Nd2 {[%clk
0:02:39.4]} 15... Rhg8 {[%clk 0:02:08.9]} 16. Raf1 {[%clk 0:02:34.4]} 16... Rg7
{[%clk 0:02:08.4]} 17. g3 {[%clk 0:02:27.9]} 17... Rag8 {[%clk 0:02:06.9]} 18.
Rf6 {[%clk 0:02:23.4]} 18... h5 {[%clk 0:02:04.1]} 19. Rh6 {[%clk 0:02:22.8]}
19... Rg5 {[%clk 0:01:56.1]} 20. Nf3 {[%clk 0:02:21.4]} 20... Rg4 {[%clk
0:01:54.4]} 21. Nxe5 {[%clk 0:02:19.1]} 21... R4g7 {[%clk 0:01:41.7]} 22. Nxd7
{[%clk 0:02:14.9]} 22... Kxd7 {[%clk 0:01:42.6]} 23. Bxe6+ {[%clk 0:02:08.9]}
23... fxe6 {[%clk 0:01:43.5]} 24. Rxh5 {[%clk 0:02:09.2]} 24... Rg4 {[%clk
0:01:42.4]} 25. Rh7+ {[%clk 0:02:06.1]} 25... Kc6 {[%clk 0:01:40.8]} 26. Rff7
{[%clk 0:02:04.7]} 26... Rc8 {[%clk 0:01:37]} 27. Rf4 {[%clk 0:02:02.8]} 27...
Rg5 {[%clk 0:01:35.4]} 28. Kf2 {[%clk 0:02:01]} 28... Rb5 {[%clk 0:01:34]} 29.
b4 {[%clk 0:02:00.3]} 29... a5 {[%clk 0:01:33.2]} 30. a3 {[%clk 0:01:59.8]}
30... axb4 {[%clk 0:01:32.3]} 31. axb4 {[%clk 0:02:00.7]} 31... Re5 {[%clk
0:01:32.1]} 32. Ke3 {[%clk 0:01:56.6]} 32... Kb6 {[%clk 0:01:28.2]} 33. c4
{[%clk 0:01:55.5]} 33... Rg5 {[%clk 0:01:26.6]} 34. Rf6 {[%clk 0:01:54]} 34...
Ra8 {[%clk 0:01:22.7]} 35. Rxe6+ {[%clk 0:01:51.3]} 35... c6 {[%clk 0:01:22.2]}
36. Ree7 {[%clk 0:01:51.6]} 36... Ra7 {[%clk 0:01:21.2]} 37. c5+ {[%clk
0:01:47.7]} 37... Ka6 {[%clk 0:01:19.5]} 38. Kf4 {[%clk 0:01:46.8]} 38... Rg8
{[%clk 0:01:18.1]} 39. Rhg7 {[%clk 0:01:45.8]} 39... Rb8 {[%clk 0:01:16.9]} 40.
h4 {[%clk 0:01:42.9]} 40... Kb5 {[%clk 0:01:17.2]} 41. h5 {[%clk 0:01:43.3]}
41... Kxb4 {[%clk 0:01:18.1]} 42. h6 {[%clk 0:01:43.8]} 42... Kxc5 {[%clk
0:01:19]} 43. h7 {[%clk 0:01:43.8]} 43... Raa8 {[%clk 0:01:18.5]} 44. Rxb7
{[%clk 0:01:42.3]} 44... Rf8+ {[%clk 0:01:17.7]} 45. Kg4 {[%clk 0:01:40.8]}
45... Kd4 {[%clk 0:01:16.8]} 46. Rbc7 {[%clk 0:01:37.3]} 46... c5 {[%clk
0:01:16.7]} 47. Rgd7+ {[%clk 0:01:36.8]} 47... Kxe4 {[%clk 0:01:13]} 48. Rxc5
{[%clk 0:01:35.4]} 48... Ra4 {[%clk 0:01:09.3]} 49. Rg5 {[%clk 0:01:28.1]} 49...
Raa8 {[%clk 0:01:00]} 50. Re7+ {[%clk 0:01:25.4]} 50... Kd4 {[%clk 0:00:57.2]}
51. Kh5 {[%clk 0:01:23.8]} 51... Rh8 {[%clk 0:00:52.2]} 52. g4 {[%clk
0:01:23.1]} 52... Ra1 {[%clk 0:00:51.1]} 53. Rgg7 {[%clk 0:01:22.2]} 53... Kd5
{[%clk 0:00:49.5]} 54. Kg6 {[%clk 0:01:21.4]} 54... Ra6+ {[%clk 0:00:47.4]} 55.
Kg5 {[%clk 0:01:19.3]} 55... Raa8 {[%clk 0:00:46.3]} 56. Ref7 {[%clk 0:01:18.8]}
56... Ke6 {[%clk 0:00:46.1]} 57. Rf6+ {[%clk 0:01:18.7]} 57... Ke5 {[%clk
0:00:45.8]} 58. Re7+ {[%clk 0:01:16.8]} 58... Kd5 {[%clk 0:00:45.1]} 59. Rff7
{[%clk 0:01:16.7]} 59... Kd6 {[%clk 0:00:44.4]} 60. Kf6 {[%clk 0:01:15.4]} 60...
Ra1 {[%clk 0:00:41.3]} 61. Rd7+ {[%clk 0:01:15.6]} 61... Kc6 {[%clk 0:00:40.8]}
62. g5 {[%clk 0:01:15.9]} 62... Re8 {[%clk 0:00:36.7]} 63. Rde7 {[%clk
0:01:14.8]} 63... Rd8 {[%clk 0:00:34.2]} 64. Kg7 {[%clk 0:01:14.6]} 64... Rg1
{[%clk 0:00:32.6]} 65. g6 {[%clk 0:01:14.2]} 65... Rd6 {[%clk 0:00:32.2]} 66.
Rf6 {[%clk 0:01:13.7]} 1-0

[Event "*** SCC Grand Prix: Titled Tuesday Blitz"]
[Site "Chess.com"]
[Date "2020.07.21"]
[Round "8"]
[White "Flopezin"]
[Black "Cambek64"]
[Result "0-1"]
[WhiteElo "2121"]
[BlackElo "2346"]
[TimeControl "180+1"]
[EndTime "11:35:32 PDT"]
[Termination "Cambek64 won by resignation"]

1. c4 {[%clk 0:03:00.9]} 1... e5 {[%clk 0:02:58.9]} 2. Nc3 {[%clk 0:03:01.1]}
2... Nc6 {[%clk 0:02:59.2]} 3. Nf3 {[%clk 0:03:01.6]} 3... f5 {[%clk 0:02:59.2]}
4. d3 {[%clk 0:02:56.6]} 4... Nf6 {[%clk 0:02:59.5]} 5. g3 {[%clk 0:02:57.2]}
5... Bc5 {[%clk 0:02:56]} 6. Bg2 {[%clk 0:02:55.8]} 6... d6 {[%clk 0:02:56.3]}
7. O-O {[%clk 0:02:55.8]} 7... a6 {[%clk 0:02:56.7]} 8. a3 {[%clk 0:02:55.4]}
8... O-O {[%clk 0:02:56.9]} 9. b4 {[%clk 0:02:55.9]} 9... Ba7 {[%clk 0:02:57.3]}
10. Bb2 {[%clk 0:02:49.2]} 10... Qe8 {[%clk 0:02:57.5]} 11. e3 {[%clk
0:02:41.6]} 11... Qh5 {[%clk 0:02:56.9]} 12. Nd2 {[%clk 0:02:41.6]} 12... Qh6
{[%clk 0:02:55.7]} 13. Nd5 {[%clk 0:02:40.4]} 13... Nxd5 {[%clk 0:02:47.4]} 14.
Bxd5+ {[%clk 0:02:38.3]} 14... Be6 {[%clk 0:02:47.4]} 15. Bg2 {[%clk 0:02:34.3]}
15... f4 {[%clk 0:02:43.2]} 16. exf4 {[%clk 0:01:55.5]} 16... exf4 {[%clk
0:02:41.5]} 17. g4 {[%clk 0:01:50.9]} 17... f3 {[%clk 0:02:15.9]} 18. Bxf3
{[%clk 0:01:48.4]} 18... Ne5 {[%clk 0:02:16.1]} 19. Bxe5 {[%clk 0:01:41.8]}
19... dxe5 {[%clk 0:02:15.9]} 20. c5 {[%clk 0:01:34.3]} 20... c6 {[%clk
0:02:11.1]} 21. Ne4 {[%clk 0:01:31.7]} 21... Rad8 {[%clk 0:02:08.3]} 22. Bg2
{[%clk 0:01:17.9]} 22... Bb8 {[%clk 0:01:56]} 23. Qe2 {[%clk 0:01:07.4]} 23...
Rf4 {[%clk 0:01:48]} 24. h3 {[%clk 0:01:06.7]} 24... Qg6 {[%clk 0:01:43]} 25.
Kh2 {[%clk 0:00:53.3]} 25... h5 {[%clk 0:01:04.5]} 26. f3 {[%clk 0:00:47.9]}
26... Rdf8 {[%clk 0:00:52.7]} 27. Rae1 {[%clk 0:00:42.3]} 27... Bd5 {[%clk
0:00:52]} 28. Qe3 {[%clk 0:00:36.3]} 28... h4 {[%clk 0:00:43.2]} 29. Rf2 {[%clk
0:00:31.4]} 29... Qe8 {[%clk 0:00:38.3]} 30. Bf1 {[%clk 0:00:31.4]} 30... Qd8
{[%clk 0:00:33.8]} 31. Be2 {[%clk 0:00:31.1]} 31... Bxe4 {[%clk 0:00:31]} 32.
dxe4 {[%clk 0:00:29]} 32... Qd4 {[%clk 0:00:31]} 33. Qxd4 {[%clk 0:00:27.2]}
33... exd4 {[%clk 0:00:31.4]} 34. Rd1 {[%clk 0:00:27.8]} 34... Rxf3+ {[%clk
0:00:28.8]} 35. Kg2 {[%clk 0:00:25.6]} 35... Rxf2+ {[%clk 0:00:28.7]} 0-1

[Event "*** SCC Grand Prix: Titled Tuesday Blitz"]
[Site "Chess.com"]
[Date "2020.07.21"]
[Round "8"]
[White "sergivila"]
[Black "Vuk2000"]
[Result "0-1"]
[WhiteElo "2409"]
[BlackElo "2629"]
[TimeControl "180+1"]
[EndTime "11:35:34 PDT"]
[Termination "Vuk2000 won by resignation"]

1. e4 {[%clk 0:03:00.9]} 1... d5 {[%clk 0:02:59.4]} 2. exd5 {[%clk 0:03:00.7]}
2... Qxd5 {[%clk 0:03:00.3]} 3. Nc3 {[%clk 0:03:00.5]} 3... Qd6 {[%clk
0:03:00.4]} 4. d4 {[%clk 0:03:00.1]} 4... Nf6 {[%clk 0:03:00.2]} 5. Nf3 {[%clk
0:02:59.9]} 5... c6 {[%clk 0:03:00.4]} 6. Ne5 {[%clk 0:02:54.1]} 6... Nbd7
{[%clk 0:02:58.3]} 7. Nc4 {[%clk 0:02:53.7]} 7... Qc7 {[%clk 0:02:58.2]} 8. Qf3
{[%clk 0:02:53.4]} 8... Nb6 {[%clk 0:02:56.7]} 9. Bf4 {[%clk 0:02:50.5]} 9...
Qd8 {[%clk 0:02:55.7]} 10. Be5 {[%clk 0:02:37.6]} 10... Bg4 {[%clk 0:02:40.8]}
11. Qg3 {[%clk 0:02:30.4]} 11... h5 {[%clk 0:02:38.3]} 12. h3 {[%clk 0:02:23.1]}
12... h4 {[%clk 0:02:34.8]} 13. Qe3 {[%clk 0:02:12.7]} 13... Be6 {[%clk
0:02:23.3]} 14. Nxb6 {[%clk 0:02:02.8]} 14... axb6 {[%clk 0:02:21.2]} 15. Bd3
{[%clk 0:01:58.9]} 15... Nd5 {[%clk 0:01:33.5]} 16. Nxd5 {[%clk 0:01:57.1]}
16... Qxd5 {[%clk 0:01:33.1]} 17. O-O {[%clk 0:01:52.8]} 17... Rxa2 {[%clk
0:01:29.6]} 18. c4 {[%clk 0:01:45.2]} 18... Qa5 {[%clk 0:01:26.9]} 19. Rxa2
{[%clk 0:01:39.7]} 19... Qxa2 {[%clk 0:01:27.8]} 20. d5 {[%clk 0:01:17.7]} 20...
cxd5 {[%clk 0:01:12]} 21. cxd5 {[%clk 0:01:18.6]} 21... Qxd5 {[%clk 0:01:07]}
22. Be4 {[%clk 0:01:02.7]} 22... Qb3 {[%clk 0:00:50.9]} 23. Ra1 {[%clk
0:00:43.6]} 23... Qxe3 {[%clk 0:00:28]} 24. Ra8+ {[%clk 0:00:41]} 24... Kd7
{[%clk 0:00:28.2]} 25. fxe3 {[%clk 0:00:41]} 25... f6 {[%clk 0:00:27.8]} 26. Bd4
{[%clk 0:00:40]} 26... b5 {[%clk 0:00:20.1]} 27. Bb6 {[%clk 0:00:35]} 27... Bc4
{[%clk 0:00:17.7]} 28. Bxb7 {[%clk 0:00:23.9]} 28... g5 {[%clk 0:00:17.1]} 29.
Kf2 {[%clk 0:00:18.9]} 29... Bg7 {[%clk 0:00:17.1]} 30. Ra1 {[%clk 0:00:17.2]}
30... Rb8 {[%clk 0:00:16.4]} 31. Rd1+ {[%clk 0:00:16.7]} 31... Ke6 {[%clk
0:00:16.4]} 0-1

[Event "*** SCC Grand Prix: Titled Tuesday Blitz"]
[Site "Chess.com"]
[Date "2020.07.21"]
[Round "8"]
[White "ambaixador"]
[Black "skiff134"]
[Result "0-1"]
[WhiteElo "2331"]
[BlackElo "2549"]
[TimeControl "180+1"]
[EndTime "11:35:38 PDT"]
[Termination "skiff134 won by checkmate"]

1. Nf3 {[%clk 0:03:00.9]} 1... d5 {[%clk 0:02:58.8]} 2. c4 {[%clk 0:03:01]} 2...
d4 {[%clk 0:02:58.6]} 3. g3 {[%clk 0:03:01.3]} 3... Nc6 {[%clk 0:02:55.4]} 4.
Bg2 {[%clk 0:03:01]} 4... e5 {[%clk 0:02:55.5]} 5. d3 {[%clk 0:03:01]} 5... Nf6
{[%clk 0:02:54.5]} 6. O-O {[%clk 0:03:01.1]} 6... Bg4 {[%clk 0:02:52.8]} 7. Nbd2
{[%clk 0:02:50.8]} 7... Be7 {[%clk 0:02:49.4]} 8. Rb1 {[%clk 0:02:50.6]} 8... a5
{[%clk 0:02:46.7]} 9. b3 {[%clk 0:02:44.7]} 9... Qd7 {[%clk 0:02:44.9]} 10. Re1
{[%clk 0:02:43.4]} 10... O-O {[%clk 0:02:44.4]} 11. a3 {[%clk 0:02:42.1]} 11...
Bh3 {[%clk 0:02:29.5]} 12. Bh1 {[%clk 0:02:41.1]} 12... Ng4 {[%clk 0:02:19.9]}
13. Ne4 {[%clk 0:02:15.1]} 13... h6 {[%clk 0:02:19.1]} 14. b4 {[%clk 0:02:05.4]}
14... axb4 {[%clk 0:02:18]} 15. axb4 {[%clk 0:02:06.3]} 15... Bxb4 {[%clk
0:02:14.2]} 16. Bd2 {[%clk 0:02:06.2]} 16... Be7 {[%clk 0:02:06.2]} 17. Rb5
{[%clk 0:01:13.2]} 17... f5 {[%clk 0:01:33.3]} 18. Nc5 {[%clk 0:01:12.9]} 18...
Bxc5 {[%clk 0:01:32.9]} 19. Rxc5 {[%clk 0:01:13.8]} 19... e4 {[%clk 0:01:32.2]}
20. Rd5 {[%clk 0:01:06.3]} 20... Qe7 {[%clk 0:01:05.3]} 21. Nxd4 {[%clk
0:01:04.6]} 21... e3 {[%clk 0:00:56.4]} 22. fxe3 {[%clk 0:00:58.2]} 22... Nxe3
{[%clk 0:00:56.2]} 23. Nxc6 {[%clk 0:00:46]} 23... bxc6 {[%clk 0:00:54.4]} 24.
Rd7 {[%clk 0:00:29.8]} 24... Qxd7 {[%clk 0:00:47.6]} 25. Bxe3 {[%clk 0:00:29.7]}
25... f4 {[%clk 0:00:46.8]} 26. Bf2 {[%clk 0:00:24.3]} 26... fxg3 {[%clk
0:00:44.5]} 27. Bxg3 {[%clk 0:00:25.2]} 27... Ra2 {[%clk 0:00:39.1]} 28. Bg2
{[%clk 0:00:23.5]} 28... Qd4+ {[%clk 0:00:35.1]} 29. Kh1 {[%clk 0:00:21.8]}
29... Bxg2+ {[%clk 0:00:27.5]} 30. Kxg2 {[%clk 0:00:22.7]} 30... Qe3 {[%clk
0:00:27.8]} 31. c5 {[%clk 0:00:19]} 31... Kh8 {[%clk 0:00:26.7]} 32. d4 {[%clk
0:00:16.7]} 32... Rd2 {[%clk 0:00:26.4]} 33. Qa4 {[%clk 0:00:15.9]} 33... Rxe2+
{[%clk 0:00:25.7]} 34. Rxe2 {[%clk 0:00:16.8]} 34... Qxe2+ {[%clk 0:00:26.4]}
35. Kh3 {[%clk 0:00:17.4]} 35... Qf1+ {[%clk 0:00:26.5]} 36. Kh4 {[%clk
0:00:16.6]} 36... g5+ {[%clk 0:00:15.1]} 37. Kh5 {[%clk 0:00:16.6]} 37... Qf3+
{[%clk 0:00:12]} 38. Kxh6 {[%clk 0:00:16.3]} 38... Rf6+ {[%clk 0:00:12.3]} 39.
Kxg5 {[%clk 0:00:16.3]} 39... Qf5+ {[%clk 0:00:12.9]} 40. Kh4 {[%clk 0:00:16.3]}
40... Rh6# {[%clk 0:00:13.8]} 0-1